[Event "*** Titled Tuesday Blitz"]
[Site "Chess.com"]
[Date "2020.10.27"]
[Round "6"]
[White "XDPS"]
[Black "kuli4ik"]
[Result "0-1"]
[WhiteElo "2740"]
[BlackElo "2887"]
[TimeControl "180+1"]
[EndTime "11:07:25 PDT"]
[Termination "kuli4ik won on time"]

1. e4 {[%clk 0:03:00.9]} 1... e6 {[%clk 0:02:59.7]} 2. d4 {[%clk 0:02:56.7]}
2... d5 {[%clk 0:03:00.6]} 3. Nc3 {[%clk 0:02:57.2]} 3... Be7 {[%clk 0:02:59.6]}
4. Nf3 {[%clk 0:02:43.3]} 4... Nf6 {[%clk 0:02:58.6]} 5. Bd3 {[%clk 0:02:40.8]}
5... c5 {[%clk 0:02:57.8]} 6. exd5 {[%clk 0:02:37.4]} 6... exd5 {[%clk
0:02:57.3]} 7. dxc5 {[%clk 0:02:31.3]} 7... O-O {[%clk 0:02:56.7]} 8. Be3 {[%clk
0:02:23.2]} 8... Nbd7 {[%clk 0:02:27.3]} 9. b4 {[%clk 0:02:21]} 9... b6 {[%clk
0:02:24.2]} 10. Na4 {[%clk 0:02:13.3]} 10... bxc5 {[%clk 0:02:22.5]} 11. bxc5
{[%clk 0:02:10.9]} 11... Qa5+ {[%clk 0:02:18.6]} 12. c3 {[%clk 0:02:10.7]} 12...
Nxc5 {[%clk 0:02:16.5]} 13. Nxc5 {[%clk 0:02:08.2]} 13... Bxc5 {[%clk
0:02:14.7]} 14. O-O {[%clk 0:01:48.6]} 14... Bxe3 {[%clk 0:02:12.6]} 15. fxe3
{[%clk 0:01:49.5]} 15... Qxc3 {[%clk 0:02:11.7]} 16. Rc1 {[%clk 0:01:46]} 16...
Qa3 {[%clk 0:02:09.6]} 17. Nd4 {[%clk 0:01:38.6]} 17... Qe7 {[%clk 0:02:05.7]}
18. Kh1 {[%clk 0:01:30.5]} 18... Bg4 {[%clk 0:01:53.6]} 19. Qb3 {[%clk
0:01:27.1]} 19... Rac8 {[%clk 0:01:41.7]} 20. Rce1 {[%clk 0:01:25]} 20... Qe5
{[%clk 0:01:33.1]} 21. Qa4 {[%clk 0:01:15.6]} 21... Rc3 {[%clk 0:01:26.5]} 22.
Qa6 {[%clk 0:00:39.2]} 22... Bc8 {[%clk 0:01:06.7]} 23. Qb5 {[%clk 0:00:38.7]}
23... Bd7 {[%clk 0:01:05.1]} 24. Qa6 {[%clk 0:00:38]} 24... Bc8 {[%clk
0:01:00.5]} 25. Qb5 {[%clk 0:00:37.6]} 25... a6 {[%clk 0:00:57.4]} 26. Qb1
{[%clk 0:00:37.3]} 26... h6 {[%clk 0:00:52.2]} 27. Nf3 {[%clk 0:00:21]} 27...
Qd6 {[%clk 0:00:49.7]} 28. Nd4 {[%clk 0:00:21.1]} 28... Bd7 {[%clk 0:00:47.4]}
29. Bf5 {[%clk 0:00:20.1]} 29... Re8 {[%clk 0:00:42.3]} 30. Bxd7 {[%clk
0:00:20.1]} 30... Qxd7 {[%clk 0:00:42.4]} 31. Nf5 {[%clk 0:00:21]} 31... Ne4
{[%clk 0:00:34.8]} 32. Qb4 {[%clk 0:00:19]} 32... Rc6 {[%clk 0:00:29.5]} 33. Qb2
{[%clk 0:00:18.8]} 33... Rg6 {[%clk 0:00:23.6]} 34. Rf3 {[%clk 0:00:18.1]} 34...
Ng5 {[%clk 0:00:18]} 35. Rff1 {[%clk 0:00:15.8]} 35... Ree6 {[%clk 0:00:14.3]}
36. Qd4 {[%clk 0:00:13.6]} 36... Ref6 {[%clk 0:00:14.5]} 37. Ng3 {[%clk
0:00:10.5]} 37... Ne6 {[%clk 0:00:14.7]} 38. Qb6 {[%clk 0:00:09]} 38... Rxf1+
{[%clk 0:00:14]} 39. Rxf1 {[%clk 0:00:09.9]} 39... Qb5 {[%clk 0:00:12.7]} 40.
Qd6 {[%clk 0:00:07.9]} 40... Rxg3 {[%clk 0:00:11.4]} 41. Rc1 {[%clk 0:00:02.2]}
41... Rg5 {[%clk 0:00:09.2]} 42. Qe7 {[%clk 0:00:02.6]} 42... Qe2 {[%clk
0:00:07.4]} 0-1

[Event "*** Titled Tuesday Blitz"]
[Site "Chess.com"]
[Date "2020.10.27"]
[Round "6"]
[White "rasmussvane"]
[Black "Yashasd1995"]
[Result "0-1"]
[WhiteElo "2849"]
[BlackElo "2554"]
[TimeControl "180+1"]
[EndTime "11:07:26 PDT"]
[Termination "Yashasd1995 won on time"]

1. Nf3 {[%clk 0:03:00.9]} 1... Nf6 {[%clk 0:02:58.8]} 2. g3 {[%clk 0:03:00.3]}
2... d5 {[%clk 0:02:58.4]} 3. Bg2 {[%clk 0:02:58.8]} 3... Nbd7 {[%clk
0:02:57.7]} 4. d4 {[%clk 0:02:58.7]} 4... e6 {[%clk 0:02:56.8]} 5. c4 {[%clk
0:02:58.5]} 5... c6 {[%clk 0:02:55.9]} 6. Nbd2 {[%clk 0:02:56.4]} 6... Be7
{[%clk 0:02:54.9]} 7. O-O {[%clk 0:02:56.4]} 7... O-O {[%clk 0:02:55.1]} 8. Qc2
{[%clk 0:02:56.9]} 8... b6 {[%clk 0:02:55.1]} 9. e4 {[%clk 0:02:57.2]} 9... a5
{[%clk 0:02:54.7]} 10. Rd1 {[%clk 0:02:55.4]} 10... Ba6 {[%clk 0:02:51.1]} 11.
e5 {[%clk 0:02:55.7]} 11... Ne8 {[%clk 0:02:50.5]} 12. cxd5 {[%clk 0:02:56.3]}
12... cxd5 {[%clk 0:02:49.3]} 13. Nf1 {[%clk 0:02:56.4]} 13... Rc8 {[%clk
0:02:46.9]} 14. Qd2 {[%clk 0:02:51.7]} 14... b5 {[%clk 0:02:43.4]} 15. h4 {[%clk
0:02:49.8]} 15... b4 {[%clk 0:02:42.9]} 16. Ne3 {[%clk 0:02:46.2]} 16... Nb6
{[%clk 0:02:42.1]} 17. h5 {[%clk 0:02:35.9]} 17... Nc4 {[%clk 0:02:33.8]} 18.
Qe1 {[%clk 0:02:35.9]} 18... Nxe3 {[%clk 0:02:32]} 19. Bxe3 {[%clk 0:02:36.8]}
19... Rc2 {[%clk 0:02:31.5]} 20. Rd2 {[%clk 0:02:35.3]} 20... Rxd2 {[%clk
0:02:20.4]} 21. Qxd2 {[%clk 0:02:35]} 21... Nc7 {[%clk 0:02:21.3]} 22. h6 {[%clk
0:02:34.7]} 22... g6 {[%clk 0:02:20.1]} 23. Rc1 {[%clk 0:02:33.7]} 23... Bc4
{[%clk 0:02:16.7]} 24. b3 {[%clk 0:02:10]} 24... Ba6 {[%clk 0:02:15.8]} 25. Bg5
{[%clk 0:02:07.6]} 25... Bxg5 {[%clk 0:02:12.5]} 26. Nxg5 {[%clk 0:02:08.5]}
26... Nb5 {[%clk 0:02:07.6]} 27. Rc6 {[%clk 0:01:45.3]} 27... Bb7 {[%clk
0:02:02.6]} 28. Rc5 {[%clk 0:01:45.6]} 28... Nxd4 {[%clk 0:02:02.4]} 29. Nxh7
{[%clk 0:01:34.6]} 29... Nxb3 {[%clk 0:01:33.6]} 30. axb3 {[%clk 0:01:34.4]}
30... Kxh7 {[%clk 0:01:33.3]} 31. Qc1 {[%clk 0:01:20.6]} 31... Re8 {[%clk
0:00:58]} 32. Qf4 {[%clk 0:01:05.1]} 32... Re7 {[%clk 0:00:50.5]} 33. g4 {[%clk
0:00:58.8]} 33... Rd7 {[%clk 0:00:49.7]} 34. g5 {[%clk 0:00:50.9]} 34... d4
{[%clk 0:00:47]} 35. Bxb7 {[%clk 0:00:47]} 35... Rxb7 {[%clk 0:00:47.9]} 36.
Rxa5 {[%clk 0:00:28.4]} 36... d3 {[%clk 0:00:46.7]} 37. Ra2 {[%clk 0:00:27.1]}
37... Rd7 {[%clk 0:00:46.7]} 38. Rd2 {[%clk 0:00:23.8]} 38... Rd4 {[%clk
0:00:46.4]} 39. Qg3 {[%clk 0:00:20.6]} 39... Qd5 {[%clk 0:00:43.2]} 40. f4
{[%clk 0:00:19.4]} 40... Qxb3 {[%clk 0:00:37.5]} 41. Qf3 {[%clk 0:00:15.3]}
41... Qd5 {[%clk 0:00:35.3]} 42. Qf2 {[%clk 0:00:06.9]} 42... Qe4 {[%clk
0:00:30.1]} 43. Qg3 {[%clk 0:00:04.4]} 43... b3 {[%clk 0:00:25.6]} 44. Qf2
{[%clk 0:00:04.1]} 44... Rc4 {[%clk 0:00:20.3]} 45. Qa7 {[%clk 0:00:03.1]} 45...
Rc1+ {[%clk 0:00:18]} 46. Kf2 {[%clk 0:00:02.5]} 46... Qxf4+ {[%clk 0:00:17.8]}
47. Kg2 {[%clk 0:00:03]} 47... Qxd2+ {[%clk 0:00:17.5]} 0-1

[Event "*** Titled Tuesday Blitz"]
[Site "Chess.com"]
[Date "2020.10.27"]
[Round "6"]
[White "Casper_Schoppen"]
[Black "crescentmoon2411"]
[Result "0-1"]
[WhiteElo "2944"]
[BlackElo "2865"]
[TimeControl "180+1"]
[EndTime "11:07:27 PDT"]
[Termination "crescentmoon2411 won by checkmate"]

1. c4 {[%clk 0:03:00.9]} 1... Nf6 {[%clk 0:02:58.5]} 2. Nc3 {[%clk 0:03:00]}
2... c5 {[%clk 0:02:53.2]} 3. g3 {[%clk 0:02:59.6]} 3... Nc6 {[%clk 0:02:49.2]}
4. Bg2 {[%clk 0:02:55.1]} 4... g6 {[%clk 0:02:48.9]} 5. Nf3 {[%clk 0:02:53.2]}
5... d6 {[%clk 0:02:48.6]} 6. d4 {[%clk 0:02:51]} 6... cxd4 {[%clk 0:02:44.7]}
7. Nxd4 {[%clk 0:02:50.6]} 7... Bd7 {[%clk 0:02:44.8]} 8. O-O {[%clk 0:02:50.5]}
8... h5 {[%clk 0:02:38]} 9. Bg5 {[%clk 0:02:45.6]} 9... Bg7 {[%clk 0:02:35.9]}
10. Rc1 {[%clk 0:02:39.5]} 10... Rc8 {[%clk 0:02:30.9]} 11. b3 {[%clk
0:02:37.3]} 11... h4 {[%clk 0:02:02.6]} 12. Bxh4 {[%clk 0:02:27.1]} 12... Nh7
{[%clk 0:01:46.4]} 13. Nxc6 {[%clk 0:02:17.2]} 13... bxc6 {[%clk 0:01:43.4]} 14.
f4 {[%clk 0:02:15.1]} 14... Qb6+ {[%clk 0:01:32.1]} 15. Kh1 {[%clk 0:02:14.8]}
15... Bf6 {[%clk 0:01:31.9]} 16. c5 {[%clk 0:01:56.6]} 16... Qa5 {[%clk
0:01:15.8]} 17. Ne4 {[%clk 0:01:46]} 17... Bxh4 {[%clk 0:01:14.6]} 18. gxh4
{[%clk 0:01:45.8]} 18... d5 {[%clk 0:01:14.4]} 19. Qd4 {[%clk 0:01:36.8]} 19...
f6 {[%clk 0:01:08.5]} 20. Nc3 {[%clk 0:01:35.9]} 20... Nf8 {[%clk 0:01:05.9]}
21. b4 {[%clk 0:01:20.6]} 21... Qc7 {[%clk 0:01:00.9]} 22. e4 {[%clk 0:01:16.5]}
22... dxe4 {[%clk 0:00:36.9]} 23. Nxe4 {[%clk 0:01:13.3]} 23... Kf7 {[%clk
0:00:28.3]} 24. Rce1 {[%clk 0:01:04.1]} 24... Ne6 {[%clk 0:00:18.7]} 25. Ng5+
{[%clk 0:00:44.5]} 25... Nxg5 {[%clk 0:00:16.6]} 26. fxg5 {[%clk 0:00:43.5]}
26... Bf5 {[%clk 0:00:16.8]} 27. Re3 {[%clk 0:00:26.5]} 27... Rcd8 {[%clk
0:00:14.5]} 28. Qc4+ {[%clk 0:00:26.6]} 28... Kg7 {[%clk 0:00:13.3]} 29. Rfe1
{[%clk 0:00:26.7]} 29... e6 {[%clk 0:00:11.9]} 30. Qc3 {[%clk 0:00:23.4]} 30...
Rxh4 {[%clk 0:00:10]} 31. Qxf6+ {[%clk 0:00:23.3]} 31... Kh7 {[%clk 0:00:10.2]}
32. h3 {[%clk 0:00:21.6]} 32... Rxb4 {[%clk 0:00:08]} 33. Rxe6 {[%clk
0:00:13.2]} 33... Bxe6 {[%clk 0:00:07.8]} 34. Rxe6 {[%clk 0:00:13.3]} 34... Rb1+
{[%clk 0:00:05.8]} 35. Bf1 {[%clk 0:00:13.1]} 35... Qg7 {[%clk 0:00:03.8]} 36.
Re7 {[%clk 0:00:12.6]} 36... Rxf1+ {[%clk 0:00:03.4]} 37. Qxf1 {[%clk
0:00:08.6]} 37... Qxe7 {[%clk 0:00:02.9]} 38. Qf4 {[%clk 0:00:07.5]} 38... Rd1+
{[%clk 0:00:02.1]} 39. Kg2 {[%clk 0:00:07.4]} 39... Qe2+ {[%clk 0:00:02.3]} 40.
Kg3 {[%clk 0:00:07.8]} 40... Rd3+ {[%clk 0:00:01.5]} 41. Kh4 {[%clk 0:00:06.8]}
41... Qh5# {[%clk 0:00:01.7]} 0-1

[Event "*** Titled Tuesday Blitz"]
[Site "Chess.com"]
[Date "2020.10.27"]
[Round "6"]
[White "scarabee43"]
[Black "fireheart92"]
[Result "1/2-1/2"]
[WhiteElo "2546"]
[BlackElo "2854"]
[TimeControl "180+1"]
[EndTime "11:07:28 PDT"]
[Termination "Game drawn by repetition"]

1. Nf3 {[%clk 0:03:00.9]} 1... Nf6 {[%clk 0:02:59.3]} 2. c4 {[%clk 0:03:01.2]}
2... c5 {[%clk 0:02:59.2]} 3. Nc3 {[%clk 0:03:01.3]} 3... Nc6 {[%clk 0:02:57.4]}
4. e3 {[%clk 0:03:00.7]} 4... e6 {[%clk 0:02:55.5]} 5. d4 {[%clk 0:02:59.9]}
5... d5 {[%clk 0:02:55.9]} 6. cxd5 {[%clk 0:02:57.8]} 6... exd5 {[%clk
0:02:47.9]} 7. Bb5 {[%clk 0:02:57.8]} 7... cxd4 {[%clk 0:02:44.2]} 8. Nxd4
{[%clk 0:02:50.7]} 8... Bd7 {[%clk 0:02:43.8]} 9. O-O {[%clk 0:02:46.9]} 9...
Bd6 {[%clk 0:02:43.9]} 10. Nf3 {[%clk 0:02:41.9]} 10... Bg4 {[%clk 0:02:39.8]}
11. b3 {[%clk 0:02:25.4]} 11... O-O {[%clk 0:02:32.5]} 12. Bb2 {[%clk
0:02:25.3]} 12... Rc8 {[%clk 0:02:29.8]} 13. Rc1 {[%clk 0:02:23.2]} 13... d4
{[%clk 0:02:11.7]} 14. exd4 {[%clk 0:02:17.4]} 14... Bf4 {[%clk 0:02:11.4]} 15.
Rb1 {[%clk 0:02:07.8]} 15... Nd5 {[%clk 0:01:45.3]} 16. Be2 {[%clk 0:01:58.4]}
16... Re8 {[%clk 0:01:38.6]} 17. h3 {[%clk 0:01:51.5]} 17... Bh5 {[%clk
0:01:33.8]} 18. Nxd5 {[%clk 0:01:46.6]} 18... Qxd5 {[%clk 0:01:33.2]} 19. Bc4
{[%clk 0:01:47.2]} 19... Qf5 {[%clk 0:01:27.2]} 20. d5 {[%clk 0:01:38.8]} 20...
Ne5 {[%clk 0:01:20.1]} 21. Bxe5 {[%clk 0:01:36.5]} 21... Bxe5 {[%clk 0:01:20.4]}
22. Qd3 {[%clk 0:01:14.5]} 22... Qxd3 {[%clk 0:00:58.3]} 23. Bxd3 {[%clk
0:01:13.8]} 23... Bxf3 {[%clk 0:00:57.9]} 24. gxf3 {[%clk 0:01:13.7]} 24... Rc3
{[%clk 0:00:48.4]} 25. Be4 {[%clk 0:00:53.1]} 25... Bf4 {[%clk 0:00:45.2]} 26.
Rfd1 {[%clk 0:00:48.1]} 26... Rd8 {[%clk 0:00:40.1]} 27. d6 {[%clk 0:00:43.7]}
27... b6 {[%clk 0:00:34.3]} 28. d7 {[%clk 0:00:20.3]} 28... Rc7 {[%clk
0:00:33.7]} 29. Rd4 {[%clk 0:00:20.5]} 29... Rdxd7 {[%clk 0:00:18]} 30. Rbd1
{[%clk 0:00:18.4]} 30... Rxd4 {[%clk 0:00:16]} 31. Rxd4 {[%clk 0:00:18.9]} 31...
g5 {[%clk 0:00:16]} 32. Kg2 {[%clk 0:00:12.5]} 32... Kg7 {[%clk 0:00:15.5]} 33.
b4 {[%clk 0:00:09.4]} 33... h5 {[%clk 0:00:15.1]} 34. b5 {[%clk 0:00:08.7]}
34... h4 {[%clk 0:00:15.1]} 35. Bc6 {[%clk 0:00:08.3]} 35... Re7 {[%clk
0:00:14.5]} 36. Kf1 {[%clk 0:00:07.1]} 36... Kf6 {[%clk 0:00:13.4]} 37. Rd8
{[%clk 0:00:06.6]} 37... Re5 {[%clk 0:00:12.5]} 38. Rd7 {[%clk 0:00:05.4]} 38...
Rc5 {[%clk 0:00:12.3]} 39. Rxa7 {[%clk 0:00:05.5]} 39... Rc1+ {[%clk 0:00:12.2]}
40. Kg2 {[%clk 0:00:05.5]} 40... Rc2 {[%clk 0:00:12.4]} 41. Kf1 {[%clk
0:00:03.8]} 41... Rc1+ {[%clk 0:00:11.9]} 42. Kg2 {[%clk 0:00:04.2]} 42... Rc2
{[%clk 0:00:11.1]} 43. Kf1 {[%clk 0:00:04.5]} 43... Rc1+ {[%clk 0:00:07]}
1/2-1/2

[Event "*** Titled Tuesday Blitz"]
[Site "Chess.com"]
[Date "2020.10.27"]
[Round "6"]
[White "mr65"]
[Black "TotsukaBlade"]
[Result "0-1"]
[WhiteElo "2202"]
[BlackElo "2434"]
[TimeControl "180+1"]
[EndTime "11:07:30 PDT"]
[Termination "TotsukaBlade won on time"]

1. e4 {[%clk 0:03:00.9]} 1... e5 {[%clk 0:02:58]} 2. Nf3 {[%clk 0:02:59.7]} 2...
Nc6 {[%clk 0:02:58]} 3. Bb5 {[%clk 0:02:59.6]} 3... a6 {[%clk 0:02:58.2]} 4. Ba4
{[%clk 0:02:59.3]} 4... Nf6 {[%clk 0:02:58.6]} 5. O-O {[%clk 0:02:59.3]} 5...
Be7 {[%clk 0:02:59.1]} 6. Re1 {[%clk 0:02:58.5]} 6... b5 {[%clk 0:02:59.8]} 7.
Bb3 {[%clk 0:02:58.6]} 7... d6 {[%clk 0:03:00.7]} 8. c3 {[%clk 0:02:58.2]} 8...
O-O {[%clk 0:03:01.1]} 9. h3 {[%clk 0:02:58.3]} 9... Na5 {[%clk 0:03:01.5]} 10.
Bc2 {[%clk 0:02:57.6]} 10... c5 {[%clk 0:03:02.1]} 11. d4 {[%clk 0:02:57.5]}
11... Nd7 {[%clk 0:03:01.4]} 12. Nbd2 {[%clk 0:02:56.2]} 12... exd4 {[%clk
0:03:01.7]} 13. cxd4 {[%clk 0:02:55.1]} 13... Nc6 {[%clk 0:03:02.1]} 14. d5
{[%clk 0:02:47.5]} 14... Nce5 {[%clk 0:03:01.3]} 15. Nxe5 {[%clk 0:02:47.3]}
15... Nxe5 {[%clk 0:03:02.2]} 16. Nf3 {[%clk 0:02:44.9]} 16... Ng6 {[%clk
0:02:56.5]} 17. a4 {[%clk 0:02:39.1]} 17... Bd7 {[%clk 0:02:38.6]} 18. Bd2
{[%clk 0:02:12.1]} 18... b4 {[%clk 0:02:32]} 19. b3 {[%clk 0:02:04]} 19... f5
{[%clk 0:02:26.1]} 20. Rc1 {[%clk 0:01:59.7]} 20... fxe4 {[%clk 0:02:20.8]} 21.
Bxe4 {[%clk 0:01:58.1]} 21... Nf4 {[%clk 0:02:14.9]} 22. Bxf4 {[%clk 0:01:52.9]}
22... Rxf4 {[%clk 0:02:14.6]} 23. Qd3 {[%clk 0:01:46.3]} 23... h6 {[%clk
0:02:00.3]} 24. Nd2 {[%clk 0:01:34.8]} 24... Bg5 {[%clk 0:01:38.9]} 25. Nc4
{[%clk 0:01:29.5]} 25... Qf6 {[%clk 0:01:14.5]} 26. Rc2 {[%clk 0:01:24.6]} 26...
Rf8 {[%clk 0:01:13.1]} 27. Ree2 {[%clk 0:01:02.4]} 27... Qa1+ {[%clk 0:00:54.7]}
28. Kh2 {[%clk 0:00:57.4]} 28... R4f6 {[%clk 0:00:49.2]} 29. g3 {[%clk
0:00:39.4]} 29... Qf1 {[%clk 0:00:41.3]} 30. f4 {[%clk 0:00:32.6]} 30... Rxf4
{[%clk 0:00:27.3]} 31. Bg2 {[%clk 0:00:21.4]} 31... Rf2 {[%clk 0:00:21.2]} 32.
Rxf2 {[%clk 0:00:20.2]} 32... Qxd3 {[%clk 0:00:20.2]} 33. Rxf8+ {[%clk
0:00:19.1]} 33... Kxf8 {[%clk 0:00:21.1]} 34. Rf2+ {[%clk 0:00:17.6]} 34... Kg8
{[%clk 0:00:21]} 35. Nxd6 {[%clk 0:00:17.4]} 35... Qxb3 {[%clk 0:00:20.2]} 36.
h4 {[%clk 0:00:16.3]} 36... Bf6 {[%clk 0:00:19.2]} 37. Ne4 {[%clk 0:00:16.1]}
37... c4 {[%clk 0:00:16.2]} 38. d6 {[%clk 0:00:13.9]} 38... c3 {[%clk
0:00:15.3]} 39. Nc5 {[%clk 0:00:13.7]} 39... Qf7 {[%clk 0:00:14.2]} 40. Nxd7
{[%clk 0:00:09.7]} 40... Qxd7 {[%clk 0:00:15.1]} 41. Bd5+ {[%clk 0:00:07.9]}
41... Kh7 {[%clk 0:00:14.9]} 42. Bb3 {[%clk 0:00:06.4]} 42... Qxd6 {[%clk
0:00:14.4]} 43. Kg2 {[%clk 0:00:06.6]} 43... Kh8 {[%clk 0:00:12]} 44. Re2 {[%clk
0:00:06.4]} 44... g6 {[%clk 0:00:12.2]} 45. h5 {[%clk 0:00:05]} 45... gxh5
{[%clk 0:00:12.1]} 46. Re8+ {[%clk 0:00:03.2]} 46... Kg7 {[%clk 0:00:12.6]} 47.
Rg8+ {[%clk 0:00:03.2]} 47... Kh7 {[%clk 0:00:13.1]} 0-1

[Event "*** Titled Tuesday Blitz"]
[Site "Chess.com"]
[Date "2020.10.27"]
[Round "6"]
[White "Lady_Nika"]
[Black "Leonid_Starozhilov"]
[Result "0-1"]
[WhiteElo "2438"]
[BlackElo "2643"]
[TimeControl "180+1"]
[EndTime "11:07:31 PDT"]
[Termination "Leonid_Starozhilov won by checkmate"]

1. d4 {[%clk 0:03:00.9]} 1... Nf6 {[%clk 0:02:59.8]} 2. e3 {[%clk 0:03:00]} 2...
g6 {[%clk 0:02:59.7]} 3. f4 {[%clk 0:02:59.6]} 3... Ne4 {[%clk 0:02:58.7]} 4.
Nf3 {[%clk 0:02:59.3]} 4... d5 {[%clk 0:02:58.3]} 5. Bd3 {[%clk 0:02:59.4]} 5...
Bf5 {[%clk 0:02:57.7]} 6. O-O {[%clk 0:02:58.9]} 6... Nd7 {[%clk 0:02:54.3]} 7.
Nbd2 {[%clk 0:02:59.1]} 7... Bg7 {[%clk 0:02:46.3]} 8. Qe2 {[%clk 0:02:58.4]}
8... h5 {[%clk 0:02:44.2]} 9. c3 {[%clk 0:02:58.1]} 9... Ndf6 {[%clk 0:02:41.4]}
10. Ne5 {[%clk 0:02:57]} 10... c6 {[%clk 0:02:39.9]} 11. Nxe4 {[%clk 0:02:54.5]}
11... Nxe4 {[%clk 0:02:34.6]} 12. Bd2 {[%clk 0:02:53.9]} 12... O-O {[%clk
0:02:18.8]} 13. Be1 {[%clk 0:02:53.2]} 13... Nd6 {[%clk 0:02:10.4]} 14. Bxf5
{[%clk 0:02:51.8]} 14... Nxf5 {[%clk 0:02:10.9]} 15. e4 {[%clk 0:02:51.9]} 15...
dxe4 {[%clk 0:02:09.4]} 16. Qxe4 {[%clk 0:02:51.4]} 16... Qd5 {[%clk 0:02:07.9]}
17. Qe2 {[%clk 0:02:50.9]} 17... c5 {[%clk 0:02:04.3]} 18. dxc5 {[%clk
0:02:49.9]} 18... Qxc5+ {[%clk 0:02:03.5]} 19. Bf2 {[%clk 0:02:49.1]} 19... Qc7
{[%clk 0:01:59.1]} 20. Rad1 {[%clk 0:02:47.3]} 20... Rfd8 {[%clk 0:01:28.8]} 21.
Qb5 {[%clk 0:02:33.5]} 21... Rd6 {[%clk 0:01:06]} 22. Rde1 {[%clk 0:02:28.5]}
22... a6 {[%clk 0:00:55.3]} 23. Qb3 {[%clk 0:02:27.7]} 23... e6 {[%clk
0:00:52.1]} 24. Nc4 {[%clk 0:02:27]} 24... Rd3 {[%clk 0:00:48.9]} 25. Ne5 {[%clk
0:02:18.4]} 25... Rd2 {[%clk 0:00:43.5]} 26. Bb6 {[%clk 0:02:17.8]} 26... Qe7
{[%clk 0:00:39.3]} 27. Nc4 {[%clk 0:02:01.8]} 27... Rd5 {[%clk 0:00:34.6]} 28.
Ba5 {[%clk 0:01:53.7]} 28... Rxa5 {[%clk 0:00:28.7]} 29. Nxa5 {[%clk 0:01:52]}
29... Qc5+ {[%clk 0:00:28.9]} 30. Kh1 {[%clk 0:01:52.1]} 30... Qxa5 {[%clk
0:00:29.3]} 31. Qxb7 {[%clk 0:01:52]} 31... Qd5 {[%clk 0:00:25.1]} 32. Qxd5
{[%clk 0:01:31.9]} 32... exd5 {[%clk 0:00:26]} 33. Rf3 {[%clk 0:01:30.3]} 33...
Rb8 {[%clk 0:00:25.8]} 34. b3 {[%clk 0:01:29.4]} 34... d4 {[%clk 0:00:25.1]} 35.
cxd4 {[%clk 0:01:28.9]} 35... Bxd4 {[%clk 0:00:25.7]} 36. Rd3 {[%clk 0:01:28.6]}
36... Rc8 {[%clk 0:00:24.9]} 37. h3 {[%clk 0:01:26.7]} 37... h4 {[%clk
0:00:24.8]} 38. Red1 {[%clk 0:01:25.2]} 38... Bb6 {[%clk 0:00:20]} 39. a4 {[%clk
0:01:23.4]} 39... Kg7 {[%clk 0:00:17.2]} 40. b4 {[%clk 0:01:19.3]} 40... Rc4
{[%clk 0:00:16.4]} 41. a5 {[%clk 0:01:17.5]} 41... Bd4 {[%clk 0:00:13.9]} 42. b5
{[%clk 0:01:15.5]} 42... axb5 {[%clk 0:00:14.8]} 43. a6 {[%clk 0:01:15.4]} 43...
Ra4 {[%clk 0:00:14.4]} 44. Rb1 {[%clk 0:01:14.4]} 44... Rxa6 {[%clk 0:00:13.6]}
45. Rbd1 {[%clk 0:01:07.9]} 45... b4 {[%clk 0:00:12.3]} 46. Rxd4 {[%clk
0:01:07]} 46... Nxd4 {[%clk 0:00:12.7]} 47. Rxd4 {[%clk 0:01:07.6]} 47... Rb6
{[%clk 0:00:12.1]} 48. Rd2 {[%clk 0:01:07.1]} 48... b3 {[%clk 0:00:12.3]} 49.
Rb2 {[%clk 0:01:07.3]} 49... Kf6 {[%clk 0:00:12.6]} 50. Kg1 {[%clk 0:01:07.6]}
50... Kf5 {[%clk 0:00:13.2]} 51. Kf2 {[%clk 0:01:08.1]} 51... Kxf4 {[%clk
0:00:13.8]} 52. Ke2 {[%clk 0:01:07.5]} 52... f5 {[%clk 0:00:13.4]} 53. Kd3
{[%clk 0:01:07.7]} 53... Kg3 {[%clk 0:00:12.3]} 54. Kc4 {[%clk 0:01:07.3]} 54...
g5 {[%clk 0:00:12.4]} 55. Kc5 {[%clk 0:01:07.2]} 55... Rb8 {[%clk 0:00:13]} 56.
Kd4 {[%clk 0:01:06.4]} 56... g4 {[%clk 0:00:11.7]} 57. hxg4 {[%clk 0:01:05.7]}
57... fxg4 {[%clk 0:00:12.6]} 58. Ke3 {[%clk 0:01:05.1]} 58... h3 {[%clk
0:00:12.7]} 59. gxh3 {[%clk 0:01:04.7]} 59... gxh3 {[%clk 0:00:13.6]} 60. Rb1
{[%clk 0:01:01.6]} 60... h2 {[%clk 0:00:13.4]} 61. Kd2 {[%clk 0:01:01.7]} 61...
Kg2 {[%clk 0:00:13]} 62. Kc3 {[%clk 0:01:01.9]} 62... h1=Q {[%clk 0:00:13]} 63.
Rxh1 {[%clk 0:01:02.1]} 63... Kxh1 {[%clk 0:00:13.9]} 64. Kb2 {[%clk 0:01:02.6]}
64... Kg2 {[%clk 0:00:14.4]} 65. Kc1 {[%clk 0:01:02.5]} 65... Kf3 {[%clk
0:00:15]} 66. Kb2 {[%clk 0:01:02]} 66... Ke4 {[%clk 0:00:15.9]} 67. Kb1 {[%clk
0:01:01.7]} 67... Kd3 {[%clk 0:00:16]} 68. Kc1 {[%clk 0:01:02.2]} 68... Kc3
{[%clk 0:00:16.1]} 69. Kb1 {[%clk 0:01:00.4]} 69... Rh8 {[%clk 0:00:17]} 70. Ka1
{[%clk 0:00:59.6]} 70... Rh1# {[%clk 0:00:17.7]} 0-1